Cogmind - Beta 15 *** ADVENTURER MODE // 2025.06.23 @ 20:36:46 Player: sbr Result: Destroyed by G-50 Soldier with Heavy Laser Performance ------------- Evolutions (5) 2500 Regions Visited (4) 800 Robots Destroyed (22) 110 Value Destroyed (836) 836 Prototype IDs (8) 160 Alien Tech Used (0) 0 Bonus (800) 800 TOTAL SCORE: 5206 Bonus ------- Registered with UFD 300 Met Optimus in HQ 500 Cogmind --------- Core Integrity 0/1000 Matter 14/300 Energy 100/100 System Corruption 7% Temperature Cool (9) Movement Core (50) Location -5/Factory Parts ------- > --- POWER (1) -------- (None) > --- PROPULSION (4) --- (None) > --- UTILITY (10) ----- (None) > --- WEAPON (2) ------- (None) > --- INVENTORY (5) ---- Sensor Array Heavy Phase Cannon KE Penetrator Mini Assault Cannon Peak State ------------ > --- POWER ------------ Light Angular Momentum Engine > --- PROPULSION ------- Aluminum Leg Carbon-fiber Leg Carbon-fiber Leg VSS Leg > --- UTILITY ---------- Small Storage Unit Improved Matter Compressor Advanced Weight Redist. System Advanced Visual Processing Unit Sensor Array Hardened Medium Armor Plating Improved Medium Armor Plating Improved Shield Generator Makeshift Hacking Suite A0-MCA's Component Scanner > --- WEAPON ----------- Heavy Phase Cannon KE Penetrator > --- INVENTORY -------- Fusion Compressor Sensor Array Heavy Phase Cannon Assault Rifle Proton Missile Launcher [Rating: 67] Favorites ----------- Power Light Nuclear Core Engine Light Angular Momentum Engine Power Core Light Nuclear Core Propulsion Aluminum Leg Leg Aluminum Leg Utility Small Storage Unit Device Sensor Array Storage Small Storage Unit Processor A0-MCA's Component Scanner Hackware Makeshift Hacking Suite Protection Hardened Medium Armor Plating Weapon Assault Rifle Energy Cannon Heavy Phase Cannon Ballistic Gun Assault Rifle Ballistic Cannon Mini Assault Cannon Launcher Proton Missile Launcher Build | -11 -10 -10 -7 -5 ------- Run | Yrd Mat Sub Scr Fac Slots Evolved 10 | . . . . 10 Power . | . . . . . Propulsion 2 | . . . . 2 Utility 8 | . . . . 8 Weapon . | . . . . . Parts Attached 41 | 6 11 . 2 22 Power 5 | 1 1 . . 3 Engine 3 | 1 . . . 2 Core 2 | . 1 . . 1 Reactor . | . . . . . Propulsion 10 | 2 4 . 1 3 Treads . | . . . . . Leg 10 | 2 4 . 1 3 Wheel . | . . . . . Hover . | . . . . . Flight . | . . . . . Utility 14 | 1 4 . . 9 Device 5 | . 2 . . 3 Storage 3 | 1 1 . . 1 Processor 3 | . 1 . . 2 Hackware 1 | . . . . 1 Protection 2 | . . . . 2 Artifact . | . . . . . Weapon 12 | 2 2 . 1 7 Energy Gun . | . . . . . Energy Cannon 2 | . . . . 2 Ballistic Gun 4 | 2 1 . . 1 Ballistic Cannon 4 | . . . . 4 Launcher 2 | . 1 . 1 . Special Weapon . | . . . . . Impact Weapon . | . . . . . Slashing Weapon . | . . . . . Piercing Weapon . | . . . . . Special Melee Weapon . | . . . . . Unidentified Prototypes 1 | . . . . 1 Corrupted Parts 1 | . . . . 1 System Corruption 7 | . . . . 7 Parts Lost 15 | . . . . 15 Power 4 | . . . . 4 Propulsion 4 | . . . . 4 Utility 5 | . . . . 5 Weapon 2 | . . . . 2 Highest Loss Streak 12 | . . . . 12 To Critical Strikes . | . . . . . Average Backups 4 | . 2 3 6 4 Power . | . . . . 1 Propulsion . | . . . . . Utility 2 | . . 2 5 . Weapon . | . . 1 . 1 Tool/Special . | . . . . . Unused Backups 1 | . . . 1 . Power . | . . . . . Propulsion . | . . . . . Utility . | . . . . . Weapon 1 | . . . 1 . Tool/Special . | . . . . . Average Slot Usage (%) 97 | . 99 100 99 88 Engine 2 | . 4 . . 3 Core 9 | . 9 14 14 . Leg 26 | . 28 28 28 19 Device 13 | . 11 14 14 15 Storage 12 | . 14 14 14 6 Processor 3 | . 1 . . 10 Hackware 1 | . . . . 4 Protection 1 | . . . . 9 Ballistic Gun 17 | . 26 14 13 4 Launcher 6 | . 1 14 13 3 Peak Build Rating 67 | 6 9 9 17 67 Average Rating 19 | 4 8 9 13 54 On Entrance 8 | . 6 9 9 17 Naked Turns 11 | . . . . 11 Heaviest Build 50 | 14 49 16 20 50 Greatest Support 61 | 20 20 20 22 61 Greatest Overweight (x) 4 | . 2 . . 4 Average Overweight (x) . | . . . . . Largest Inventory Capacity 20 | 8 20 8 8 8 Average Capacity 7 | 6 8 8 8 7 Most Carried 8 | . 6 4 8 8 Average Carried 4 | . 2 3 6 3 Final Capacity 8 | 8 8 8 8 5 Final Carried 8 | . 3 4 8 4 Class Distribution -------------------- 79% | Mutant 14% | Scavenger-Mutant 5% | Hacker-Mutant Dominant Class ---------------- Mutant | -10/Materials Mutant | -10/Subcaves Mutant | -7/Scraptown Scavenger-Mutant | -5/Factory Resources | -11 -10 -10 -7 -5 ----------- Run | Yrd Mat Sub Scr Fac Matter Collected 993 | 206 391 26 36 334 Remotely . | . . . . . Salvage Created 804 | . 366 . . 438 Parts 53 | . 31 . . 22 Haulers Intercepted . | . . . . . Recyclers Shooed . | . . . . . Parts Field Recycled . | . . . . . Retrieved Matter . | . . . . . Parts Self-Destructed . | . . . . . Prevented . | . . . . . Kills | -11 -10 -10 -7 -5 ------- Run | Yrd Mat Sub Scr Fac Combat Hostiles Destroyed 20 | . 12 . . 8 Guns 13 | . 10 . . 3 Cannons 3 | . . . . 3 AOE 4 | . 2 . . 2 Classes Destroyed 7 | . 4 . . 3 Recycler 1 | . 1 . . . Watcher 1 | . 1 . . . Swarmer 6 | . 6 . . . Grunt 10 | . 6 . . 4 Duelist 1 | . . . . 1 Sentry 1 | . . . . 1 Programmer 2 | . . . . 2 Best Kill Streak 5 | . 5 . . 2 Combat Bots Only 4 | . 4 . . 2 Max Kills in Single Turn 2 | . 2 . . 1 Gunslinging 1 | . 1 . . . Exploded 2 | . 2 . . 1 Melee . | . . . . . Uniques/NPCs Destroyed . | . . . . . Combat | -11 -10 -10 -7 -5 -------- Run | Yrd Mat Sub Scr Fac Hostile Shots Fired 227 | . 63 . 4 160 Missed 71 | . 23 . 1 47 Hits 156 | . 40 . 3 113 Melee 14 | . . . . 14 Projectile 142 | . 40 . 3 99 Critical Strikes 10 | . 2 . . 8 Damage Taken 3051 | . 374 . 41 2636 Core 1068 | . 59 . . 1009 Absorbed by Shields 37 | . . . . 37 Ignored by Resistances 833 | . 116 . 11 706 Core Remaining (%) 88 | 100 . . 76 . Volleys Fired 104 | . 43 . 2 59 Largest 2 | . 2 . 1 2 Hottest 123 | . 40 . 20 123 Shots Fired 168 | . 80 . 2 86 Gun 125 | . 77 . 2 46 Cannon 36 | . . . . 36 Launcher 7 | . 3 . . 4 Special . | . . . . . Kinetic 154 | . 77 . 2 75 Thermal 7 | . . . . 7 Explosive 3 | . 3 . . . Electromagnetic 4 | . . . . 4 Robot Hit Streak 28 | . 14 . 3 28 Robot Miss Streak 3 | . 3 . . 2 Penetration Max 1 | . . . . 1 Secondary Targets 2 | . 2 . . . Max Gunslinging Chain 1 | . 1 . . . Shots Hit Robots 117 | . 42 . 2 73 Core Hits 46 | . 23 . . 23 Critical Kills 1 | . 1 . . . Critical Parts Destroyed . | . . . . . Critical Strikes 1 | . 1 . . . Destroy 1 | . 1 . . . Melee Attacks . | . . . . . Impact . | . . . . . Slashing . | . . . . . Piercing . | . . . . . Sneak Attacks . | . . . . . Combat Hostiles . | . . . . . Follow-up Attacks . | . . . . . Damage Inflicted 2792 | . 709 . 25 2058 Guns 1423 | . 546 . 25 852 Cannons 879 | . . . . 879 Explosions 478 | . 155 . . 323 Melee . | . . . . . Ramming 12 | . 8 . . 4 Kinetic 2126 | . 546 . 25 1555 Thermal 319 | . . . . 319 Explosive 155 | . 155 . . . Electromagnetic 180 | . . . . 180 Impact . | . . . . . Slashing . | . . . . . Piercing . | . . . . . Highest Corruption 7 | . . . . 7 Average Corruption 7 | . . . . 7 Corruption Purged . | . . . . . Corruption Blocked . | . . . . . Effects 24 | . . . . 24 Message Errors 5 | . . . . 5 Matter Fused 8 | . . . . 8 Heat Flow Errors 1 | . . . . 1 Energy Discharges 5 | . . . . 5 Parts Fused 2 | . . . . 2 Data Loss (minor) 1 | . . . . 1 Misfires 1 | . . . . 1 Weapon Failures 1 | . . . . 1 Overload Shots . | . . . . . Overflow Damage 10 | . . . . 10 Projectiles . | . . . . . Explosions 10 | . . . . 10 Melee . | . . . . . Knockbacks 1 | . . . . 1 Impact . | . . . . . Kinetic 1 | . . . . 1 Secondary . | . . . . . Self-Inflicted Damage 20 | . . . . 20 Shots 2 | . . . . 2 Rammed 1 | . . . . 1 Targets Rammed 5 | . 4 . . 1 Kicked 4 | . 4 . . . Crushed . | . . . . . Highest Temperature 362 | . 28 . . 362 Average Temperature 114 | . 12 . . 169 Received Heat Transfer 885 | . 267 . 12 606 Effects 3 | . . . . 3 Interference 2 | . . . . 2 Damage (minor) 1 | . . . . 1 Siege Activations . | . . . . . Martial Activations . | . . . . . Shielding Activations . | . . . . . Robots Disrupted . | . . . . . Combat Hostiles . | . . . . . Robots Corrupted . | . . . . . Combat Hostiles . | . . . . . Parts Fried . | . . . . . Impact Corruptions . | . . . . . Robots Melted . | . . . . . Combat Hostiles . | . . . . . Parts Melted . | . . . . . Heat Transferred 285 | . . . . 285 Parts Sabotaged . | . . . . . Parts Stolen . | . . . . . Parts Stripped . | . . . . . Power Chain Reactions . | . . . . . Alert | -11 -10 -10 -7 -5 ------- Run | Yrd Mat Sub Scr Fac Maximum Alert Level . | . . . . . Low Security (%) 100 | 100 100 . . 100 Level 1 . | . . . . . Level 2 . | . . . . . Level 3 . | . . . . . Level 4 . | . . . . . Level 5 . | . . . . . High Security . | . . . . . Max Security . | . . . . . Peak Influence 169 | . 87 . . 169 Initial . | . . . . . Average 15 | . 6 . . 33 Influence Increases 754 | . 359 . . 395 Destroy 0b10 Robot/C 400 | . 240 . . 160 Destroy 0b10 Robot/NC 10 | . 10 . . . Destroy Leader 92 | . 52 . . 40 Successful Hack 39 | . 6 . . 33 Disable Machine 63 | . 9 . . 54 Destroy Structure 105 | . 27 . . 78 Lose Combat Pursuer 45 | . 15 . . 30 Influence Decreases 754 | . 299 60 . 395 Entered New Map 33 | . . 33 . . Time Decay 653 | . 299 27 . 327 Lost Part 68 | . . . . 68 Squads Dispatched 7 | . 1 . . 6 Investigation 2 | . 1 . . 1 Extermination 1 | . . . . 1 Reinforcement 4 | . . . . 4 Assault . | . . . . . Garrison . | . . . . . Intercept . | . . . . . Searches Triggered . | . . . . . Construction Impeded 1 | . . . . 1 Haulers Reinforced 1 | . . . . 1 Active Scanning Responses . | . . . . . Cargo Convoy Interrupts 1 | . . . . 1 Stealth | -11 -10 -10 -7 -5 --------- Run | Yrd Mat Sub Scr Fac Distress Signals 1 | . 1 . . . Communications Jammed . | . . . . . Distress Signals . | . . . . . Times Spotted 55 | . 29 . 9 17 Peak Tracking Total 7 | . 4 . 4 7 Tactical Retreats 2 | . 1 . . 1 Traps | -11 -10 -10 -7 -5 ------- Run | Yrd Mat Sub Scr Fac Traps Triggered 5 | . 4 . . 1 Indirectly . | . . . . . Trap Hack Attempts . | . . . . . Triggered . | . . . . . Disarmed . | . . . . . Reprogrammed . | . . . . . Reused . | . . . . . Traps Extracted . | . . . . . Installed . | . . . . . Triggered . | . . . . . Machines | -11 -10 -10 -7 -5 ---------- Run | Yrd Mat Sub Scr Fac Machines Disabled 7 | . 1 . . 6 Max in Single Turn 5 | . 1 . . 5 Machines Repaired . | . . . . . Machines Dismantled . | . . . . . Machines Sabotaged . | . . . . . Overloaded Fab Kills . | . . . . . Hacking | -11 -10 -10 -7 -5 --------- Run | Yrd Mat Sub Scr Fac Machines Accessed 12 | . 9 . 1 2 Terminals 9 | . 7 . . 2 Fabricators . | . . . . . Repair Stations . | . . . . . Recycling Units 2 | . 2 . . . Scanalyzers . | . . . . . Garrison Access . | . . . . . Total Hacks 23 | . 18 . 1 4 Successful 13 | . 9 . 1 3 Failed 10 | . 9 . . 1 Catastrophic 2 | . 2 . . . Database Lockouts . | . . . . . Manual 2 | . 2 . . . Terminals 18 | . 14 . . 4 Fabricators . | . . . . . Repair Stations . | . . . . . Recycling Units 4 | . 4 . . . Scanalyzers . | . . . . . Garrison Access . | . . . . . Terminal Hacks 10 | . 6 . 1 3 Record 2 | . 1 . 1 . Part Schematic 2 | . . . . 2 Prototype ID Bank 2 | . 2 . . . Open DSF 1 | . . . . 1 Emergency Access Points 1 | . 1 . . . Patrol Status 1 | . 1 . . . Registered Prototypes 1 | . 1 . . . Fabricator Hacks . | . . . . . Repair Station Hacks . | . . . . . Recycling Unit Hacks 2 | . 2 . . . Report Inventory 1 | . 1 . . . Retrieve Components 1 | . 1 . . . Scanalyzer . | . . . . . Garrison Access Hacks . | . . . . . Unauthorized Hacks . | . . . . . Terminals . | . . . . . Fabricators . | . . . . . Repair Stations . | . . . . . Recycling Units . | . . . . . Scanalyzers . | . . . . . Garrison Access . | . . . . . Data Cores Recovered . | . . . . . Used . | . . . . . Hacking Detections 6 | . 5 . . 1 Full Trace Events 3 | . 2 . . 1 Feedback Events . | . . . . . Feedback Blocked . | . . . . . Robot Schematics Acquired . | . . . . . Robots Built . | . . . . . Authchips . | . . . . . Time . | . . . . . Total Robot Build Rating . | . . . . . Part Schematics Acquired 2 | . . . . 2 Parts Built . | . . . . . Authchips . | . . . . . Time . | . . . . . Total Part Build Rating . | . . . . . Parts Repaired . | . . . . . Time . | . . . . . Parts Recycled . | . . . . . Recycled Matter . | . . . . . Retrieved Matter . | . . . . . Retrieved Components 1 | . 1 . . . Parts Scanalyzed . | . . . . . Part Schematics Acquired . | . . . . . Parts Damaged . | . . . . . Bothacking | -11 -10 -10 -7 -5 ------------ Run | Yrd Mat Sub Scr Fac Used RIF Installer . | . . . . . Robots Hacked . | . . . . . Non-combat . | . . . . . Combat . | . . . . . Robot Hacks Applied . | . . . . . Relay Couplers Released . | . . . . . Fabnet Peak Effective % . | . . . . . Robots Rewired . | . . . . . Allies Hacked . | . . . . . Hacks Repelled . | . . . . . Allies | -11 -10 -10 -7 -5 -------- Run | Yrd Mat Sub Scr Fac Total Allies . | . . . . . Largest Group . | . . . . . Highest-Rated Group . | . . . . . Highest-Rated Ally . | . . . . . Total Orders . | . . . . . Ally Attacks . | . . . . . Total Damage . | . . . . . Kills . | . . . . . Allies Corrupted . | . . . . . Allies Melted 1 | . . . 1 . Intel | -11 -10 -10 -7 -5 ------- Run | Yrd Mat Sub Scr Fac Active Infowar (turns) 5159 | . 1979 109 1919 1152 Optics 1145 | . . . . 1145 Sensors 5100 | . 1979 109 1919 1093 ECM 7 | . . . . 7 Robot Analysis Total . | . . . . . Derelict Logs Recovered . | . . . . . Drone Launches . | . . . . . Drone Recoveries . | . . . . . Exploration | -11 -10 -10 -7 -5 ------------- Run | Yrd Mat Sub Scr Fac Turns Passed 5635 | 112 2330 109 1919 1165 Spaces Moved 3516 | 91 1445 91 1409 480 Core 15 | 12 . . . 3 Treads . | . . . . . Legs 3501 | 79 1445 91 1409 477 Wheels . | . . . . . Hover . | . . . . . Flight . | . . . . . Fastest Speed 50 | 50 120 120 105 50 Average Speed 119 | 110 120 120 119 122 Slowest Speed 260 | 120 260 120 120 250 Overloaded Moves . | . . . . . Propulsion Burnouts . | . . . . . Robots Hopped . | . . . . . Potential Cave-ins . | . . . . . Cave-ins Triggered . | . . . . . Exploration Rate (%) 37 | 6 96 5 76 5 Regions Visited 4 Branch Regions 2 Pre-discovered Areas . | . . . . . Known Exits Taken . | . . . . . Unknown Exits Taken 4 | 1 1 1 1 . Scrap Searched 7 | . . . 7 . Spaces Dug . | . . . . . Terrain Destroyed 90 | . 24 . . 66 Melee . | . . . . . Projectile 5 | . . . . 5 AOE 85 | . 24 . . 61 Terrain Rammed . | . . . . . Walls Destroyed . | . . . . . Machines Disabled . | . . . . . Actions | -11 -10 -10 -7 -5 --------- Run | Yrd Mat Sub Scr Fac Total 4757 | 99 1954 91 1643 970 Wait 1049 | 3 445 . 215 386 Move 3512 | 90 1444 90 1408 480 Hop . | . . . . . Pick Up 16 | . 1 1 8 6 Fast Attach 13 | 6 1 . . 6 Attach 15 | . . . 2 13 Detach 5 | . . . 2 3 Swap 21 | . 11 . 1 9 Drop 17 | . 5 . 5 7 Fire 104 | . 43 . 2 59 Melee . | . . . . . Ram 1 | . . . . 1 Kick 4 | . 4 . . . Crush . | . . . . . Escape Stasis . | . . . . . Rewire . | . . . . . Trap . | . . . . . Miscellaneous . | . . . . . Route ------- -11/Scrapyard -10/Materials (discovered 5 exits: [*Mat x3] / [*Min] / [*Sub]) -10/Subcaves -7/Scraptown (discovered 2 exits: *Fac x2) -5/Factory History --------- Turn | Location | Event 4 | -11/Scrapyard | Discovered new exit (range 16) 113 | -11/Scrapyard | Entered Materials 318 | -10/Materials | Build established: Mutant 482 | -10/Materials | Discovered new exit (range 7) 1110 | -10/Materials | Discovered new exit (range 15) 1638 | -10/Materials | Discovered new exit (range 16) 1864 | -10/Materials | Discovered new exit (range 9) 1871 | -10/Materials | Discovered new exit (range 8) 2443 | -10/Materials | Entered Subcaves 2444 | -10/Subcaves | Approached by a straggling Scientist 2462 | -10/Subcaves | Scientist uncovered a shortcut to Scraptown 2497 | -10/Subcaves | Shifting Twisted Machinery released Mak. Hammer 2552 | -10/Subcaves | Entered Scraptown 3015 | -7/Scraptown | Visited Junk Repository 3070 | -7/Scraptown | Visited Spacefarers 3164 | -7/Scraptown | Visited Observation Area 3184 | -7/Scraptown | Visited Supply Room 3239 | -7/Scraptown | Discovered new exit (range 7) 3398 | -7/Scraptown | Visited Bundlers 3484 | -7/Scraptown | Visited UFD Registry 3484 | -7/Scraptown | Registered with UFD as "Armorpod" 3550 | -7/Scraptown | Visited Derelict Rescue Squad 3586 | -7/Scraptown | Visited Chapter 10 3617 | -7/Scraptown | Visited A0-MCA Data Center 3626 | -7/Scraptown | Given a B+ rating by A0-MCA 3633 | -7/Scraptown | Found A0-MCA's Component Scanner 3667 | -7/Scraptown | Visited Science Guys 3684 | -7/Scraptown | Visited Abandonware Association 3720 | -7/Scraptown | Visited Supply Room 4037 | -7/Scraptown | Met Optimus 4037 | -7/Scraptown | Accepted into 0bPrime 4124 | -7/Scraptown | Discovered new exit (range 3) 4418 | -7/Scraptown | Civil war broke out across Scraptown 4471 | -7/Scraptown | Entered Factory 4471 | -5/Factory | Evolved 10 slots: Propulsion x2, Utility x8 4498 | -5/Factory | Lost 11 allies 4979 | -5/Factory | Build established: Scavenger-Mutant 5156 | -5/Factory | Cargo convoy interrupted 5621 | -5/Factory | Core integrity fell below 50% 5632 | -5/Factory | Core integrity fell below 20% 5636 | -5/Factory | Destroyed by G-50 Soldier with Heavy Laser Last Messages --------------- 05609_ System corrupted: Energy discharge (-11). 05610_ Slug penetrates Wall. 05611_ Carbon-fiber Leg severed. 05614_ U-05 Engineer suffers critical hit (Burn). 05614_ U-05 Engineer destroyed. 05615_ M-28 Smith destroyed. 05619_ Slug penetrates Wall. 05619_ Critical hit (Burn: +37). 05621_ Fusion Compressor destroyed. 05623_ Discarded Mak. Hacking Suite. 05623_ Discarded Adv. Visual Processing Unit. 05624_ Penetrated by Slug. 05624_ Mni. Assault Cannon destroyed. 05624_ Knocked back. 05624_ Discarded Adv. Weight Redist. System. 05624_ Dropped Sml. Storage Unit. 05625_ Discarded A0-MCA's Component Scanner. 05628_ Knocked back. 05632_ Slammed into C-35 Carver. 05632_ Knocked back. Map ----- +----------------------------------------------------+ | ????????????????????????????????????????????????? | | ????????????????????????????????????????????????? | | ????????????????????????????????????????????????? | | ????????????????????????????????????????????????? | | ????????????????????????????????????????????????? | | ????????????????????????????????????????????????? | | ????????????????????????????????????????????????? | | ???? ???????????????????????????????????????????? | | ???? ???????????????????????????????????????????? | | ???# #??????????"???????????????????????????????? | | ??? ?????????? ???????????????????????????????? | | ??? ?????????? ???????????????????????????????? | | ??? " ?????????? ???????????????????????????????? | | ??? ?????????? ???????????????????????????????? | | ??? ?????????? ???????????????????????????????? | | ???# #?????????? ########???????????????????????? | | ???# #?????????? # !#???????????????????????? | | ???# #?????????# # #???????????????????????? | | ???# #?????????# # """#???????????????????????? | | ???# #?????????# # """#???????????????????????? | | ???# #?????????# #? """###?????????????????????? | | ???# ????????? +??? # #?????????????????????? | | ???# #?????????# ######;%;##????????????????????? | | ??## ########### # % % c%#????????????????????? | | ?### # ] # #%[%]g c]=#????????????????????? | | ?# # # "" "" # #%!H!! @c##????????????????????? | | ?# # # """"" #%#%%=]= %%; #???????????????????? | | ?# # # """ ! %/g=%g ###???????????????????? | | ?# # # |# #%%* "" #?????????????????????? | | ?# ####"###### # "" #?????????????????????? | | ?### + """"" #?????????????????????? | | #### ## # % #?????????????????????? | | # # ## #######?????????????????????? | | # + ####???????????????????????????? | | # # ######## #??????????????????????????????? | | # # #??????# #??????????????????????????????? | | # ] # #??????# #??????????????????????????????? | | # # #??????# #??????????????????????????????? | | # # #??????? ???????????????????????????????? | | # + #??????? ???????????????????????????????? | | # # #??????? ???????????????????????????????? | | # # #??????? ???????????????????????????????? | | ####### #??????? ???????????????????????????????? | | ??#####+######## ???????????????????????????????? | | ??# # ???????????????????????????????? | | ??# """ """ # ???????????????????????????????? | | ??# """ """ # ???????????????????????????????? | | ??# """ """ #????????????????????????????????? | | ??# #????????????????????????????????? | | ??# """ """ +????????????????????????????????? | +----------------------------------------------------+ Best States ------------- Heat Dissipation 40 Energy Generation 18 Energy Capacity 250 Matter Stores 300 Matter Capacity 600 Sight Range 20 Robot Scan Range 14 Terrain Scan Density 10 Additional Mass Support 9 Armor Coverage 450 Resistance: KI 20 Resistance: TH 20 Resistance: EX 20 Resistance: EM 20 Resistance: I 20 Resistance: S 20 Resistance: P 20 Evasion (%) 55 Offensive Hacking 21 Item Schematics ----------------- Hvy. Hardcell Cannon | -5/Factory | Hacked Imp. Point Defense System | -5/Factory | Hacked Robot Schematics ------------------ None Fabricated ------------ Nothing Repaired ---------- Nothing Alien Tech Used ----------------- None Achievements -------------- None Challenges ------------ None Game ------ Seed AbsorptionScrapAirjet Manual? 0 Play Time 00:45:52 Cumulative 18.7 hours Start 2025.06.23 @ 18:09:50 End 2025.06.23 @ 20:36:46 Sessions 1 Manual Loads 0 Difficulty Adventurer Special Mode None Game No. 17 Rogue 0 Adventurer 13 Explorer 4 Win Type - Total 0 Types 0/0/0/0/0/0/0/0/0/0 Lore% 19 Gallery% 18 Achievement% 18 Wizard Run 0 Options --------- Layout 1 ASCII 0 Keyboard 0 Movement Arrows Keybinds 0 Fullscreen 1 Font 18/SmallcapsGlow Map View 54x44 Zoom Use 0% Tactical HUD 1 Map Filters NONE Filters NONE Steam 1 RUN: 657fc0c9-aa35-4594-82e2-d8b74668fad6